[Event "Titled Tuesday Blitz February 28 Late 2023"]
[White "Figorito, Nick"]
[Black "Defend, Balint"]
[WhiteFideId "30923689"]
[BlackFideId "17004853"]
[WhiteElo "2369"]
[BlackElo "2559"]
[Result "1-0"]
[Round "04"]
[TimeControl "180+2"]
[Date "2023.02.28"]
[WhiteClock "0:01:45"]
[BlackClock "0:02:19"]

1. Nf3 {[%clk 0:03:00]}  Nf6 {[%clk 0:02:59]} 2. g3 {[%clk 0:03:01]}  c5 {[%clk 0:02:55]} 3. Bg2 {[%clk 0:03:01]}  d5 {[%clk 0:02:55]} 4. O-O {[%clk 0:03:01]}  g6 {[%clk 0:02:54]} 5. d4 {[%clk 0:03:01]}  cxd4 {[%clk 0:02:51]} 6. Nxd4 {[%clk 0:03:02]}  e5 {[%clk 0:02:50]} 7. Nb3 {[%clk 0:03:02]}  Bg7 {[%clk 0:02:46]} 8. c4 {[%clk 0:03:03]}  d4 {[%clk 0:02:46]} 9. e3 {[%clk 0:02:59]}  dxe3 {[%clk 0:02:45]} 10. Qxd8+ {[%clk 0:02:58]}  Kxd8 {[%clk 0:02:46]} 11. Bxe3 {[%clk 0:02:54]}  Nc6 {[%clk 0:02:46]} 12. Nc3 {[%clk 0:02:53]}  a6 {[%clk 0:02:44]} 13. Bg5 {[%clk 0:02:52]}  Be6 {[%clk 0:02:38]} 14. Rad1+ {[%clk 0:02:36]}  Kc7 {[%clk 0:02:32]} 15. Nd5+ {[%clk 0:02:32]}  Bxd5 {[%clk 0:02:32]} 16. cxd5 {[%clk 0:02:31]}  Nd4 {[%clk 0:02:29]} 17. Nxd4 {[%clk 0:02:27]}  exd4 {[%clk 0:02:30]} 18. Rxd4 {[%clk 0:02:25]}  Nd7 {[%clk 0:02:29]} 19. Rc4+ {[%clk 0:02:14]}  Kd6 {[%clk 0:02:28]} 20. Bf4+ {[%clk 0:02:09]}  Be5 {[%clk 0:02:28]} 21. Rfc1 {[%clk 0:01:57]}  Bxf4 {[%clk 0:02:23]} 22. Rxf4 {[%clk 0:01:58]}  f5 {[%clk 0:02:23]} 23. Rfc4 {[%clk 0:01:53]}  Rab8 {[%clk 0:02:22]} 24. Re1 {[%clk 0:01:48]}  Rbc8 {[%clk 0:02:19]} 25. Re6# {[%clk 0:01:45]} 1-0


[Site "https://www.chess.com"]

[Event "Titled Tuesday Blitz February 28 Late 2023"]
[White "Szente Varga, Fruzsina"]
[Black "Koc, Przemyslaw"]
[WhiteFideId "712264"]
[BlackFideId "1109081"]
[WhiteElo "1994"]
[BlackElo "2161"]
[Result "0-1"]
[Round "04"]
[TimeControl "180+2"]
[Date "2023.02.28"]
[WhiteClock "0:00:49"]
[BlackClock "0:00:52"]

1. e4 {[%clk 0:03:00]}  e5 {[%clk 0:02:58]} 2. Nf3 {[%clk 0:03:00]}  Nf6 {[%clk 0:02:59]} 3. Nc3 {[%clk 0:02:56]}  Nc6 {[%clk 0:02:57]} 4. d4 {[%clk 0:02:54]}  exd4 {[%clk 0:02:56]} 5. Nxd4 {[%clk 0:02:55]}  Nxe4 {[%clk 0:02:56]} 6. Nxe4 {[%clk 0:02:41]}  Qe7 {[%clk 0:02:56]} 7. f3 {[%clk 0:02:31]}  d5 {[%clk 0:02:54]} 8. Bb5 {[%clk 0:02:25]}  Bd7 {[%clk 0:02:53]} 9. O-O {[%clk 0:02:20]}  dxe4 {[%clk 0:02:52]} 10. Re1 {[%clk 0:02:14]}  Nxd4 {[%clk 0:02:39]} 11. Bxd7+ {[%clk 0:02:13]}  Qxd7 {[%clk 0:02:39]} 12. Rxe4+ {[%clk 0:02:13]}  Ne6 {[%clk 0:02:39]} 13. Qe2 {[%clk 0:02:01]}  Bc5+ {[%clk 0:02:39]} 14. Kh1 {[%clk 0:01:58]}  O-O {[%clk 0:02:37]} 15. Bd2 {[%clk 0:01:59]}  Bd4 {[%clk 0:02:31]} 16. c3 {[%clk 0:01:59]}  Bf6 {[%clk 0:02:31]} 17. Rg4 {[%clk 0:01:55]}  Rfe8 {[%clk 0:02:27]} 18. Qf2 {[%clk 0:01:53]}  Rad8 {[%clk 0:02:24]} 19. Be3 {[%clk 0:01:42]}  Qd1+ {[%clk 0:02:12]} 20. Rxd1 {[%clk 0:01:42]}  Rxd1+ {[%clk 0:02:12]} 21. Qg1 {[%clk 0:01:43]}  Rxg1+ {[%clk 0:02:12]} 22. Kxg1 {[%clk 0:01:44]}  Rd8 {[%clk 0:02:06]} 23. Kf2 {[%clk 0:01:41]}  b6 {[%clk 0:02:01]} 24. a4 {[%clk 0:01:38]}  a5 {[%clk 0:01:57]} 25. Ke2 {[%clk 0:01:37]}  Kf8 {[%clk 0:01:57]} 26. Rc4 {[%clk 0:01:35]}  c5 {[%clk 0:01:56]} 27. b4 {[%clk 0:01:35]}  axb4 {[%clk 0:01:51]} 28. cxb4 {[%clk 0:01:36]}  Bd4 {[%clk 0:01:49]} 29. Bd2 {[%clk 0:01:31]}  Ra8 {[%clk 0:01:39]} 30. a5 {[%clk 0:01:30]}  b5 {[%clk 0:01:37]} 31. Rc2 {[%clk 0:01:28]}  c4 {[%clk 0:01:37]} 32. f4 {[%clk 0:01:20]}  Nc7 {[%clk 0:01:36]} 33. Kf3 {[%clk 0:01:16]}  f5 {[%clk 0:01:35]} 34. g4 {[%clk 0:01:15]}  fxg4+ {[%clk 0:01:33]} 35. Kxg4 {[%clk 0:01:16]}  Kf7 {[%clk 0:01:34]} 36. Kf5 {[%clk 0:01:14]}  Re8 {[%clk 0:01:32]} 37. Bc1 {[%clk 0:01:12]}  Na6 {[%clk 0:01:25]} 38. Rd2 {[%clk 0:01:06]}  Bc3 {[%clk 0:01:21]} 39. Rd7+ {[%clk 0:01:05]}  Re7 {[%clk 0:01:21]} 40. Rd5 {[%clk 0:01:04]}  Rb7 {[%clk 0:01:16]} 41. Ba3 {[%clk 0:00:53]}  Bxb4 {[%clk 0:01:13]} 42. Bxb4 {[%clk 0:00:52]}  Nxb4 {[%clk 0:01:13]} 43. Rc5 {[%clk 0:00:52]}  Nd3 {[%clk 0:01:00]} 44. Rc6 {[%clk 0:00:52]}  Ra7 {[%clk 0:00:54]} 45. a6 {[%clk 0:00:51]}  Nb4 {[%clk 0:00:54]} 46. Rb6 {[%clk 0:00:50]}  Nxa6 {[%clk 0:00:52]} 47. Rxb5 {[%clk 0:00:49]}  Rc7 {[%clk 0:00:52]} 0-1


[Site "https://www.chess.com"]

[Event "Titled Tuesday Blitz February 28 Late 2023"]
[White "Roberson, Peter T"]
[Black "mohsengabr2002"]
[WhiteFideId "412384"]
[WhiteElo "2346"]
[BlackElo "2340"]
[Result "1-0"]
[Round "04"]
[TimeControl "180+2"]
[Date "2023.02.28"]
[WhiteClock "0:00:15"]
[BlackClock "0:00:18"]

1. d4 {[%clk 0:03:00]}  d5 {[%clk 0:02:40]} 2. Bf4 {[%clk 0:03:00]}  c6 {[%clk 0:02:40]} 3. Nd2 {[%clk 0:02:59]}  Qb6 {[%clk 0:02:40]} 4. Nb3 {[%clk 0:02:59]}  a5 {[%clk 0:02:40]} 5. a4 {[%clk 0:02:59]}  Bf5 {[%clk 0:02:39]} 6. e3 {[%clk 0:02:58]}  Nd7 {[%clk 0:02:39]} 7. Nf3 {[%clk 0:02:57]}  f6 {[%clk 0:02:36]} 8. Bd3 {[%clk 0:02:56]}  Bxd3 {[%clk 0:02:33]} 9. Qxd3 {[%clk 0:02:56]}  e6 {[%clk 0:02:29]} 10. O-O {[%clk 0:02:56]}  g5 {[%clk 0:02:28]} 11. Bg3 {[%clk 0:02:55]}  Ne7 {[%clk 0:02:22]} 12. e4 {[%clk 0:02:54]}  Kf7 {[%clk 0:02:21]} 13. Rae1 {[%clk 0:02:48]}  h6 {[%clk 0:01:59]} 14. Nfd2 {[%clk 0:02:42]}  f5 {[%clk 0:01:50]} 15. exf5 {[%clk 0:02:28]}  exf5 {[%clk 0:01:49]} 16. Rxe7+ {[%clk 0:02:25]}  Bxe7 {[%clk 0:01:45]} 17. Qxf5+ {[%clk 0:02:23]}  Nf6 {[%clk 0:01:44]} 18. Nf3 {[%clk 0:02:14]}  Rhg8 {[%clk 0:01:29]} 19. Re1 {[%clk 0:01:56]}  Raf8 {[%clk 0:01:23]} 20. Qe6+ {[%clk 0:01:17]}  Kg7 {[%clk 0:01:20]} 21. Qxe7+ {[%clk 0:01:15]}  Rf7 {[%clk 0:01:20]} 22. Qc5 {[%clk 0:01:13]}  Qxc5 {[%clk 0:01:14]} 23. Nxc5 {[%clk 0:01:14]}  b6 {[%clk 0:01:14]} 24. Ne6+ {[%clk 0:01:12]}  Kh7 {[%clk 0:01:13]} 25. Ne5 {[%clk 0:01:10]}  Rb7 {[%clk 0:01:04]} 26. f3 {[%clk 0:00:52]}  Rc8 {[%clk 0:00:51]} 27. b3 {[%clk 0:00:36]}  c5 {[%clk 0:00:50]} 28. dxc5 {[%clk 0:00:35]}  bxc5 {[%clk 0:00:50]} 29. Nd3 {[%clk 0:00:33]}  Nd7 {[%clk 0:00:45]} 30. h4 {[%clk 0:00:25]}  c4 {[%clk 0:00:44]} 31. bxc4 {[%clk 0:00:23]}  Rxc4 {[%clk 0:00:44]} 32. hxg5 {[%clk 0:00:23]}  Rxa4 {[%clk 0:00:43]} 33. gxh6 {[%clk 0:00:21]}  Kxh6 {[%clk 0:00:43]} 34. Nec5 {[%clk 0:00:21]}  Nxc5 {[%clk 0:00:34]} 35. Nxc5 {[%clk 0:00:22]}  Rab4 {[%clk 0:00:33]} 36. Nxb7 {[%clk 0:00:21]}  Rxb7 {[%clk 0:00:33]} 37. Ra1 {[%clk 0:00:22]}  Ra7 {[%clk 0:00:32]} 38. Ra4 {[%clk 0:00:23]}  Kg5 {[%clk 0:00:31]} 39. Be1 {[%clk 0:00:23]}  Rc7 {[%clk 0:00:29]} 40. Rxa5 {[%clk 0:00:24]}  Rxc2 {[%clk 0:00:29]} 41. Rxd5+ {[%clk 0:00:24]}  Kf4 {[%clk 0:00:26]} 42. Rd4+ {[%clk 0:00:24]}  Ke5 {[%clk 0:00:25]} 43. Re4+ {[%clk 0:00:24]}  Kf5 {[%clk 0:00:25]} 44. Bf2 {[%clk 0:00:24]}  Ra2 {[%clk 0:00:24]} 45. g3 {[%clk 0:00:25]}  Ra3 {[%clk 0:00:23]} 46. Kg2 {[%clk 0:00:25]}  Ra2 {[%clk 0:00:24]} 47. g4+ {[%clk 0:00:26]}  Kf6 {[%clk 0:00:23]} 48. Kg3 {[%clk 0:00:27]}  Kg6 {[%clk 0:00:23]} 49. Be3 {[%clk 0:00:27]}  Kf6 {[%clk 0:00:23]} 50. Bd4+ {[%clk 0:00:27]}  Kf7 {[%clk 0:00:22]} 51. g5 {[%clk 0:00:26]}  Ra4 {[%clk 0:00:20]} 52. Kg4 {[%clk 0:00:25]}  Kg6 {[%clk 0:00:20]} 53. Bf6 {[%clk 0:00:24]}  Ra2 {[%clk 0:00:19]} 54. Kf4 {[%clk 0:00:21]}  Ra4 {[%clk 0:00:18]} 55. Rxa4 {[%clk 0:00:15]} 1-0


[Site "https://www.chess.com"]

[Event "Titled Tuesday Blitz February 28 Late 2023"]
[White "Van Foreest, Machteld"]
[Black "Ristic, Nebojsa B"]
[WhiteFideId "1051563"]
[BlackFideId "935468"]
[WhiteElo "2018"]
[BlackElo "2303"]
[Result "0-1"]
[Round "04"]
[TimeControl "180+2"]
[Date "2023.02.28"]
[WhiteClock "0:00:04"]
[BlackClock "0:00:18"]

1. e4 {[%clk 0:03:00]}  Nc6 {[%clk 0:02:52]} 2. d4 {[%clk 0:02:57]}  d6 {[%clk 0:02:52]} 3. Nf3 {[%clk 0:02:56]}  Nf6 {[%clk 0:02:51]} 4. Nc3 {[%clk 0:02:54]}  g6 {[%clk 0:02:50]} 5. Bb5 {[%clk 0:02:53]}  a6 {[%clk 0:02:49]} 6. Ba4 {[%clk 0:02:53]}  b5 {[%clk 0:02:47]} 7. Bb3 {[%clk 0:02:50]}  Bg7 {[%clk 0:02:44]} 8. a3 {[%clk 0:02:44]}  O-O {[%clk 0:02:43]} 9. O-O {[%clk 0:02:40]}  Na5 {[%clk 0:02:43]} 10. Ba2 {[%clk 0:02:38]}  Bb7 {[%clk 0:02:41]} 11. Re1 {[%clk 0:02:38]}  c5 {[%clk 0:02:38]} 12. Bg5 {[%clk 0:02:28]}  cxd4 {[%clk 0:02:32]} 13. Nxd4 {[%clk 0:02:26]}  Rc8 {[%clk 0:02:31]} 14. Qd2 {[%clk 0:02:16]}  Nc4 {[%clk 0:02:30]} 15. Bxc4 {[%clk 0:02:10]}  Rxc4 {[%clk 0:02:28]} 16. Rad1 {[%clk 0:02:05]}  Nxe4 {[%clk 0:02:22]} 17. Nxe4 {[%clk 0:01:59]}  Rxd4 {[%clk 0:02:22]} 18. Qf4 {[%clk 0:01:47]}  Rxd1 {[%clk 0:02:11]} 19. Rxd1 {[%clk 0:01:48]}  h6 {[%clk 0:02:10]} 20. Bh4 {[%clk 0:01:13]}  g5 {[%clk 0:02:03]} 21. Bxg5 {[%clk 0:01:09]}  hxg5 {[%clk 0:01:56]} 22. Nxg5 {[%clk 0:01:10]}  e5 {[%clk 0:01:35]} 23. Qf5 {[%clk 0:01:02]}  Be4 {[%clk 0:00:50]} 24. Nxe4 {[%clk 0:00:59]}  Re8 {[%clk 0:00:44]} 25. Nxd6 {[%clk 0:00:53]}  Re7 {[%clk 0:00:42]} 26. Qg4 {[%clk 0:00:52]}  Rd7 {[%clk 0:00:38]} 27. Qb4 {[%clk 0:00:40]}  Bf8 {[%clk 0:00:37]} 28. Qg4+ {[%clk 0:00:38]}  Bg7 {[%clk 0:00:28]} 29. Qb4 {[%clk 0:00:37]}  a5 {[%clk 0:00:24]} 30. Qc5 {[%clk 0:00:17]}  Bf8 {[%clk 0:00:24]} 31. Qxe5 {[%clk 0:00:16]}  Bxd6 {[%clk 0:00:21]} 32. Qf5 {[%clk 0:00:06]}  Bxh2+ {[%clk 0:00:20]} 33. Kxh2 {[%clk 0:00:07]}  Qh4+ {[%clk 0:00:18]} 34. Qh3 {[%clk 0:00:04]}  Qxh3+ {[%clk 0:00:18]} 35. Kxh3 {[%clk 0:00:04]}  Rxd1 {[%clk 0:00:18]} 36. Kg3 {[%clk 0:00:05]}  Rd2 {[%clk 0:00:18]} 37. a4 {[%clk 0:00:04]}  Rxc2 {[%clk 0:00:17]} 38. axb5 {[%clk 0:00:04]}  Rxb2 {[%clk 0:00:18]} 0-1


[Site "https://www.chess.com"]

[Event "Titled Tuesday Blitz February 28 Late 2023"]
[White "Ferreira, Vitor Hugo Vieira"]
[Black "Boder, Jan"]
[WhiteFideId "2119765"]
[BlackFideId "16243226"]
[WhiteElo "2146"]
[BlackElo "2241"]
[Result "1-0"]
[Round "04"]
[TimeControl "180+2"]
[Date "2023.02.28"]
[WhiteClock "0:00:30"]
[BlackClock "0:00:17"]

1. Nf3 {[%clk 0:03:00]}  c5 {[%clk 0:02:57]} 2. g3 {[%clk 0:02:52]}  g6 {[%clk 0:02:55]} 3. Bg2 {[%clk 0:02:51]}  Bg7 {[%clk 0:02:55]} 4. O-O {[%clk 0:02:51]}  Nc6 {[%clk 0:02:54]} 5. c4 {[%clk 0:02:45]}  e5 {[%clk 0:02:53]} 6. Nc3 {[%clk 0:02:44]}  d6 {[%clk 0:02:52]} 7. d3 {[%clk 0:02:42]}  Nge7 {[%clk 0:02:52]} 8. Rb1 {[%clk 0:02:31]}  O-O {[%clk 0:02:50]} 9. a3 {[%clk 0:02:30]}  a5 {[%clk 0:02:49]} 10. Ne1 {[%clk 0:02:28]}  Be6 {[%clk 0:02:48]} 11. Nc2 {[%clk 0:02:25]}  d5 {[%clk 0:02:47]} 12. cxd5 {[%clk 0:02:19]}  Nxd5 {[%clk 0:02:48]} 13. Ne3 {[%clk 0:02:18]}  Nde7 {[%clk 0:02:48]} 14. Ne4 {[%clk 0:02:12]}  b6 {[%clk 0:02:35]} 15. Ng5 {[%clk 0:02:12]}  Bd7 {[%clk 0:02:35]} 16. Bd2 {[%clk 0:02:10]}  h6 {[%clk 0:02:34]} 17. Ne4 {[%clk 0:02:08]}  Be6 {[%clk 0:02:31]} 18. b4 {[%clk 0:02:02]}  axb4 {[%clk 0:02:31]} 19. axb4 {[%clk 0:02:02]}  cxb4 {[%clk 0:02:31]} 20. Bxb4 {[%clk 0:02:02]}  Nxb4 {[%clk 0:02:30]} 21. Rxb4 {[%clk 0:02:03]}  Nd5 {[%clk 0:02:29]} 22. Nxd5 {[%clk 0:02:01]}  Bxd5 {[%clk 0:02:30]} 23. Qb1 {[%clk 0:01:59]}  f5 {[%clk 0:02:27]} 24. Nd2 {[%clk 0:01:50]}  Bxg2 {[%clk 0:02:28]} 25. Kxg2 {[%clk 0:01:51]}  Qd5+ {[%clk 0:02:19]} 26. e4 {[%clk 0:01:24]}  Qd8 {[%clk 0:01:40]} 27. Rxb6 {[%clk 0:01:20]}  Kh7 {[%clk 0:01:28]} 28. Rb7 {[%clk 0:01:06]}  f4 {[%clk 0:01:24]} 29. Qb5 {[%clk 0:01:05]}  Ra5 {[%clk 0:01:15]} 30. Qd7 {[%clk 0:01:02]}  Qxd7 {[%clk 0:01:14]} 31. Rxd7 {[%clk 0:01:03]}  Kh8 {[%clk 0:01:10]} 32. Nc4 {[%clk 0:01:00]}  f3+ {[%clk 0:01:06]} 33. Kh3 {[%clk 0:00:58]}  Raa8 {[%clk 0:01:00]} 34. Kg4 {[%clk 0:00:53]}  h5+ {[%clk 0:00:59]} 35. Kg5 {[%clk 0:00:51]}  Rad8 {[%clk 0:00:59]} 36. Rxd8 {[%clk 0:00:47]}  Rxd8 {[%clk 0:01:00]} 37. Rd1 {[%clk 0:00:47]}  Kh7 {[%clk 0:00:59]} 38. Kh4 {[%clk 0:00:35]}  Bf6+ {[%clk 0:00:40]} 39. Kh3 {[%clk 0:00:34]}  g5 {[%clk 0:00:41]} 40. g4 {[%clk 0:00:33]}  hxg4+ {[%clk 0:00:41]} 41. Kxg4 {[%clk 0:00:33]}  Kg6 {[%clk 0:00:42]} 42. Kxf3 {[%clk 0:00:32]}  Rh8 {[%clk 0:00:43]} 43. Kg2 {[%clk 0:00:32]}  g4 {[%clk 0:00:41]} 44. Rb1 {[%clk 0:00:32]}  Kg5 {[%clk 0:00:33]} 45. Rb5 {[%clk 0:00:31]}  Kf4 {[%clk 0:00:22]} 46. Ne3 {[%clk 0:00:32]}  Bg5 {[%clk 0:00:17]} 47. Nd5# {[%clk 0:00:30]} 1-0


[Site "https://www.chess.com"]

[Event "Titled Tuesday Blitz February 28 Late 2023"]
[White "Guo, Josh"]
[Black "Lawson, Eric"]
[WhiteFideId "2682427"]
[BlackFideId "2604116"]
[WhiteElo "2337"]
[BlackElo "2505"]
[Result "0-1"]
[Round "04"]
[TimeControl "180+2"]
[Date "2023.02.28"]
[WhiteClock "0:00:01"]
[BlackClock "0:01:32"]

1. e4 {[%clk 0:02:59]}  c5 {[%clk 0:03:00]} 2. Nf3 {[%clk 0:02:59]}  d6 {[%clk 0:03:00]} 3. d4 {[%clk 0:02:58]}  cxd4 {[%clk 0:03:01]} 4. Nxd4 {[%clk 0:02:58]}  Nf6 {[%clk 0:03:01]} 5. Nc3 {[%clk 0:02:57]}  a6 {[%clk 0:03:02]} 6. Bg5 {[%clk 0:02:57]}  e6 {[%clk 0:02:58]} 7. f4 {[%clk 0:02:57]}  Nbd7 {[%clk 0:02:58]} 8. Qf3 {[%clk 0:02:52]}  Qc7 {[%clk 0:02:56]} 9. O-O-O {[%clk 0:02:50]}  b5 {[%clk 0:02:56]} 10. Bxf6 {[%clk 0:02:39]}  Nxf6 {[%clk 0:02:52]} 11. e5 {[%clk 0:02:39]}  Bb7 {[%clk 0:02:52]} 12. Qe3 {[%clk 0:02:39]}  Nd5 {[%clk 0:02:30]} 13. Nxd5 {[%clk 0:01:56]}  Bxd5 {[%clk 0:02:31]} 14. Nxb5 {[%clk 0:01:42]}  axb5 {[%clk 0:02:28]} 15. Bxb5+ {[%clk 0:01:43]}  Kd8 {[%clk 0:02:27]} 16. Rxd5 {[%clk 0:01:39]}  exd5 {[%clk 0:02:24]} 17. a4 {[%clk 0:00:30]}  dxe5 {[%clk 0:02:10]} 18. Rd1 {[%clk 0:00:24]}  d4 {[%clk 0:02:09]} 19. Rxd4+ {[%clk 0:00:14]}  Kc8 {[%clk 0:02:00]} 20. Rc4 {[%clk 0:00:05]}  Qxc4 {[%clk 0:01:53]} 21. Bxc4 {[%clk 0:00:06]}  Rxa4 {[%clk 0:01:52]} 22. Bb3 {[%clk 0:00:04]}  Ra1+ {[%clk 0:01:50]} 23. Kd2 {[%clk 0:00:05]}  Bb4+ {[%clk 0:01:49]} 24. c3 {[%clk 0:00:05]}  Rd8+ {[%clk 0:01:49]} 25. Kc2 {[%clk 0:00:06]}  Bd6 {[%clk 0:01:42]} 26. fxe5 {[%clk 0:00:06]}  Bc7 {[%clk 0:01:42]} 27. Bc4 {[%clk 0:00:05]}  Rdd1 {[%clk 0:01:39]} 28. Qe4 {[%clk 0:00:03]}  Re1 {[%clk 0:01:35]} 29. Qxh7 {[%clk 0:00:02]}  Bxe5 {[%clk 0:01:34]} 30. Qg8+ {[%clk 0:00:02]}  Kc7 {[%clk 0:01:34]} 31. Qxf7+ {[%clk 0:00:03]}  Kb8 {[%clk 0:01:31]} 32. Qe8+ {[%clk 0:00:02]}  Kc7 {[%clk 0:01:31]} 33. Qf7+ {[%clk 0:00:02]}  Kb8 {[%clk 0:01:31]} 34. Qg8+ {[%clk 0:00:01]}  Kc7 {[%clk 0:01:32]} 0-1


[Site "https://www.chess.com"]

[Event "Titled Tuesday Blitz February 28 Late 2023"]
[White "Todev, Simeon"]
[Black "Filgueira, Hernan"]
[WhiteFideId "2925133"]
[BlackFideId "101770"]
[WhiteElo "1938"]
[BlackElo "2363"]
[Result "0-1"]
[Round "04"]
[TimeControl "180+2"]
[Date "2023.02.28"]
[WhiteClock "0:00:07"]
[BlackClock "0:01:03"]

1. e4 {[%clk 0:02:53]}  d6 {[%clk 0:02:58]} 2. d4 {[%clk 0:02:51]}  Nf6 {[%clk 0:02:58]} 3. Nc3 {[%clk 0:02:48]}  c6 {[%clk 0:02:58]} 4. f4 {[%clk 0:02:45]}  Qa5 {[%clk 0:02:57]} 5. Bd2 {[%clk 0:02:43]}  Qb6 {[%clk 0:02:49]} 6. Nf3 {[%clk 0:02:27]}  Bg4 {[%clk 0:02:45]} 7. Na4 {[%clk 0:02:14]}  Qc7 {[%clk 0:02:40]} 8. Bd3 {[%clk 0:02:09]}  e5 {[%clk 0:02:36]} 9. fxe5 {[%clk 0:01:53]}  dxe5 {[%clk 0:02:35]} 10. dxe5 {[%clk 0:01:53]}  Nfd7 {[%clk 0:02:34]} 11. O-O {[%clk 0:01:50]}  Nxe5 {[%clk 0:02:33]} 12. Be2 {[%clk 0:01:41]}  Bxf3 {[%clk 0:02:29]} 13. Bxf3 {[%clk 0:01:34]}  Nbd7 {[%clk 0:02:28]} 14. Nc3 {[%clk 0:01:24]}  Bd6 {[%clk 0:02:27]} 15. Be3 {[%clk 0:01:22]}  O-O {[%clk 0:02:13]} 16. Qe2 {[%clk 0:01:22]}  b5 {[%clk 0:02:10]} 17. Rad1 {[%clk 0:01:13]}  Nc4 {[%clk 0:02:07]} 18. Bd4 {[%clk 0:00:50]}  Bxh2+ {[%clk 0:02:01]} 19. Kh1 {[%clk 0:00:47]}  Be5 {[%clk 0:01:56]} 20. b3 {[%clk 0:00:43]}  Bxd4 {[%clk 0:01:52]} 21. Rxd4 {[%clk 0:00:44]}  Nce5 {[%clk 0:01:53]} 22. Qf2 {[%clk 0:00:40]}  Qb6 {[%clk 0:01:45]} 23. a4 {[%clk 0:00:31]}  a6 {[%clk 0:01:44]} 24. Rfd1 {[%clk 0:00:27]}  Nf6 {[%clk 0:01:43]} 25. Qg3 {[%clk 0:00:26]}  Rfe8 {[%clk 0:01:39]} 26. Ne2 {[%clk 0:00:23]}  Qc5 {[%clk 0:01:22]} 27. Rd6 {[%clk 0:00:14]}  Ng6 {[%clk 0:01:16]} 28. Nf4 {[%clk 0:00:12]}  Qe5 {[%clk 0:01:05]} 29. Nxg6 {[%clk 0:00:07]}  Qxg3 {[%clk 0:01:03]} 0-1


[Site "https://www.chess.com"]

[Event "Titled Tuesday Blitz February 28 Late 2023"]
[White "Bilan, Danila"]
[Black "Kostiukov, Alexandr"]
[WhiteFideId "24161918"]
[BlackFideId "14108100"]
[WhiteElo "2182"]
[BlackElo "2202"]
[Result "0-1"]
[Round "04"]
[TimeControl "180+2"]
[Date "2023.02.28"]
[WhiteClock "0:00:05"]
[BlackClock "0:00:13"]

1. d4 {[%clk 0:02:58]}  g6 {[%clk 0:02:59]} 2. Nf3 {[%clk 0:02:58]}  Bg7 {[%clk 0:02:59]} 3. Bg5 {[%clk 0:02:57]}  h6 {[%clk 0:02:59]} 4. Bh4 {[%clk 0:02:57]}  f5 {[%clk 0:02:59]} 5. e3 {[%clk 0:02:56]}  Nf6 {[%clk 0:02:59]} 6. c4 {[%clk 0:02:54]}  O-O {[%clk 0:02:58]} 7. Nc3 {[%clk 0:02:53]}  d6 {[%clk 0:02:59]} 8. Qb3 {[%clk 0:02:51]}  Kh7 {[%clk 0:02:56]} 9. Bd3 {[%clk 0:02:49]}  Nc6 {[%clk 0:02:48]} 10. O-O-O {[%clk 0:02:43]}  a6 {[%clk 0:02:28]} 11. h3 {[%clk 0:02:17]}  Qe8 {[%clk 0:02:25]} 12. d5 {[%clk 0:02:05]}  Ne5 {[%clk 0:02:17]} 13. Nxe5 {[%clk 0:01:54]}  dxe5 {[%clk 0:02:18]} 14. g4 {[%clk 0:01:48]}  fxg4 {[%clk 0:02:06]} 15. hxg4 {[%clk 0:01:45]}  Bxg4 {[%clk 0:02:07]} 16. Rdg1 {[%clk 0:01:40]}  e4 {[%clk 0:01:24]} 17. Nxe4 {[%clk 0:01:22]}  Nxe4 {[%clk 0:01:08]} 18. Rxg4 {[%clk 0:01:14]}  Nxf2 {[%clk 0:00:46]} 19. Bxf2 {[%clk 0:01:04]}  Rxf2 {[%clk 0:00:47]} 20. Bxg6+ {[%clk 0:00:57]}  Qxg6 {[%clk 0:00:46]} 21. Rxg6 {[%clk 0:00:57]}  Kxg6 {[%clk 0:00:47]} 22. Qd3+ {[%clk 0:00:52]}  Kf7 {[%clk 0:00:44]} 23. Rg1 {[%clk 0:00:38]}  Rg8 {[%clk 0:00:30]} 24. Rf1 {[%clk 0:00:17]}  Rxf1+ {[%clk 0:00:27]} 25. Qxf1+ {[%clk 0:00:18]}  Bf6 {[%clk 0:00:25]} 26. Qh3 {[%clk 0:00:18]}  Bg5 {[%clk 0:00:23]} 27. Kc2 {[%clk 0:00:18]}  Rg6 {[%clk 0:00:22]} 28. Kd3 {[%clk 0:00:17]}  Rf6 {[%clk 0:00:22]} 29. b4 {[%clk 0:00:16]}  Rf2 {[%clk 0:00:21]} 30. a4 {[%clk 0:00:16]}  Ra2 {[%clk 0:00:21]} 31. a5 {[%clk 0:00:13]}  Ra3+ {[%clk 0:00:21]} 32. Kd4 {[%clk 0:00:08]}  Bxe3+ {[%clk 0:00:17]} 33. Ke4 {[%clk 0:00:08]}  Bg5 {[%clk 0:00:18]} 34. Qe6+ {[%clk 0:00:08]}  Kg7 {[%clk 0:00:18]} 35. Qd7 {[%clk 0:00:06]}  Re3+ {[%clk 0:00:13]} 36. Kf5 {[%clk 0:00:06]}  Rf3+ {[%clk 0:00:13]} 37. Kg4 {[%clk 0:00:06]}  Rf4+ {[%clk 0:00:14]} 38. Kh5 {[%clk 0:00:05]}  Rh4# {[%clk 0:00:13]} 0-1


[Site "https://www.chess.com"]

[Event "Titled Tuesday Blitz February 28 Late 2023"]
[White "Paspuel, Trosky"]
[Black "Balla, Tamas-Kristof"]
[WhiteFideId "3602150"]
[BlackFideId "1208497"]
[WhiteElo "2314"]
[BlackElo "2334"]
[Result "0-1"]
[Round "04"]
[TimeControl "180+2"]
[Date "2023.02.28"]
[WhiteClock "0:00:01"]
[BlackClock "0:01:12"]

1. c4 {[%clk 0:03:00]}  c5 {[%clk 0:02:59]} 2. g3 {[%clk 0:03:01]}  g6 {[%clk 0:02:59]} 3. Bg2 {[%clk 0:03:01]}  Bg7 {[%clk 0:03:00]} 4. Nc3 {[%clk 0:03:01]}  Nc6 {[%clk 0:02:59]} 5. a3 {[%clk 0:03:02]}  a5 {[%clk 0:02:57]} 6. d3 {[%clk 0:02:57]}  Nf6 {[%clk 0:02:49]} 7. Nf3 {[%clk 0:02:58]}  O-O {[%clk 0:02:49]} 8. O-O {[%clk 0:02:58]}  e6 {[%clk 0:02:49]} 9. d4 {[%clk 0:02:30]}  cxd4 {[%clk 0:02:40]} 10. Nxd4 {[%clk 0:02:30]}  d5 {[%clk 0:02:38]} 11. cxd5 {[%clk 0:02:24]}  Nxd5 {[%clk 0:02:33]} 12. Ndb5 {[%clk 0:01:55]}  Nxc3 {[%clk 0:02:21]} 13. Nxc3 {[%clk 0:01:39]}  Bd7 {[%clk 0:02:06]} 14. Bf4 {[%clk 0:01:33]}  e5 {[%clk 0:01:54]} 15. Be3 {[%clk 0:01:27]}  Nd4 {[%clk 0:01:48]} 16. Qd3 {[%clk 0:00:38]}  Bc6 {[%clk 0:01:38]} 17. Rfd1 {[%clk 0:00:31]}  Bxg2 {[%clk 0:01:37]} 18. Kxg2 {[%clk 0:00:32]}  Qc7 {[%clk 0:01:31]} 19. Rac1 {[%clk 0:00:30]}  Qe7 {[%clk 0:01:25]} 20. Bxd4 {[%clk 0:00:20]}  exd4 {[%clk 0:01:26]} 21. Ne4 {[%clk 0:00:15]}  Rfe8 {[%clk 0:01:23]} 22. f3 {[%clk 0:00:15]}  f5 {[%clk 0:01:21]} 23. Qc4+ {[%clk 0:00:13]}  Kh8 {[%clk 0:01:20]} 24. Nf2 {[%clk 0:00:09]}  Qxe2 {[%clk 0:01:20]} 25. Rc2 {[%clk 0:00:06]}  Qxc4 {[%clk 0:01:15]} 26. Rxc4 {[%clk 0:00:07]}  Re2 {[%clk 0:01:16]} 27. Rc7 {[%clk 0:00:02]}  Rxb2 {[%clk 0:01:14]} 28. Kg1 {[%clk 0:00:01]}  Re8 {[%clk 0:01:12]} 0-1


[Site "https://www.chess.com"]